Workbook

Sheet Gramme par jour
A1: Donc 3 repas par jour
A3: Protéines | F3: 104 | G3: TOTAL PAR JOUR
A4: Matin | B4: 34.66666667 | F4: 34.66666667 | G4: 104
A5: Midi | B5: 34.66666667 | F5: 34.66666667 | G5: 104
A6: Soir avant l'entrainement | B6: 17.33333333 | F6: 17.33333333 | G6: 104 divisé par 3 puis 2
A7: Soir après l'entrainement | B7: 17.33333333 | F7: 17.33333333 | G7: 104 divisé par 3 puis 2
A9: Lipides | F9: =SUM(F10:F11) -> 47.42793562 | G9: TOTAL PAR JOUR
A10: Matin | B10: 23.71396781 | F10: 23.71396781 | G10: nombre de gramme de lipides divisé par 2
A11: Repas du soir | B11: 23.71396781 | F11: 23.71396781 | G11: nombre de gramme de lipides divisé par 2
A13: Glucides | F13: =SUM(F14,F16) -> 322.8514206 | G13: TOTAL PAR JOUR
A14: Matin | B14: 161.4257103 | F14: 161.4257103 | G14: nombre de gramme de glucides divisé par 2
A15: Midi | B15: 0 | F15: 0 | G15: PAS A MIDI (PIQUE D'INSULINE)
A16: Soir | B16: 161.4257103 | F16: 161.4257103 | G16: nombre de gramme de glucides divisé par 2
A18: Exemple d'aliments
A20: Protéines
A21: · Proteines
A22: · Whey
A23: · Oeufs
A24: · Viande poulet dinde
A25: · Poisson
A27: Lipides
A28: · Avocats
A29: · Oeufs
A30: · Huiles
A31: · Poisson
A32: · Amandes Noix
A34: Glucides
A35: · Fruits et legumes | B35: Patates douce | C35: PAS A MIDI | D35: PAS A MIDI | E35: PAS A MIDI | G35: PAS A MIDI
A36: · Légumineuses | B36: Quinoa | C36: PAS A MIDI | D36: PAS A MIDI | E36: PAS A MIDI | G36: PAS A MIDI
A37: · Avoine | B37: Riz | C37: PAS A MIDI | D37: PAS A MIDI | E37: PAS A MIDI | G37: PAS A MIDI
A38: · Pâtes | C38: PAS A MIDI | D38: PAS A MIDI | E38: PAS A MIDI | G38: PAS A MIDI

Sheet CALCUL
A1: Vincent Régime pique d'insuline CALCUL
A2: Total kcal | F2: Informations/formules
A3: Total Kcal par jour sans sport | B3: =(13.7516*G3)+(500.33*G4)-(6.755*G5+66.473) -> 1557.8519 | F3: Poids | G3: 65
A4: Total Kcal par jour avec sport | B4: =B3*F6 -> 2134.257103 | F4: Taille en (m) | G4: 1.73
F5: âge | G5: 20
F6: 1.37 | G6: 1 à 2 entrainement par jour
F7: 1.55 | G7: 3 à 4 entrainement par jour
A8: Protéines | F8: 1.8 | G8: 5 entrainement par jour
A9: Besoin en protéines par jour en gramme | B9: =F9*G3 -> 104 | F9: 1.6 | G9: 1,6g par kg de protéines
A10: Protéines en Kcal par jour | B10: =B9*F10 -> 416 | F10: 4 | G10: 1g de protéines = 4 Kcal
A12: Lipides
A13: Besoin en lipides (sport y compris | B13: =B4 -> 2134.257103 | F13: 0.2 | G13: Pas en dessous de 20% du total des Kcal par jour
A14: Les 20% du total de Kcal | B14: =B13*F13 -> 426.8514206
A15: Nombre de gramme de lipides par jour | B15: =B14/F15 -> 47.42793562 | F15: 9 | G15: 1g de lipides = à 9 Kcal
A17: Glucides
A18: Pour les glucides en Kcal | B18: =F18-F19-F20 -> 1291.405682 | F18: =B4 -> 2134.257103 | G18: total Kcal par jour avec sport
F19: =B10 -> 416 | G19: Protéines en Kcal par jour
F20: =B14 -> 426.8514206 | G20: Kcal de Lipides par jour
A21: Nombre de gramme de glucides par jour | B21: =B18/F21 -> 322.8514206 | F21: 4 | G21: 1 gramme de glucide = 4 Kcal
A23: Donc 3 repas par jour
A25: Protéines | F25: =B9 -> 104
A26: Matin | B26: =F26 -> 34.66666667 | F26: =F25/3 -> 34.66666667 | G26: 104
A27: Midi | B27: =F27 -> 34.66666667 | F27: =F25/3 -> 34.66666667 | G27: 104
A28: Soir avant l'entrainement | B28: =F28 -> 17.33333333 | F28: =F25/3/2 -> 17.33333333 | G28: 104 divisé par 3 puis 2
A29: Soir après l'entrainement | B29: 17.33333333 | F29: =F25/3/2 -> 17.33333333 | G29: 104 divisé par 3 puis 2
A31: Lipides
A32: Matin | B32: =F32 -> 23.71396781 | F32: =B15/2 -> 23.71396781 | G32: nombre de gramme de lipides divisé par 2
A33: Repas du soir | B33: =F33 -> 23.71396781 | F33: =B15/2 -> 23.71396781 | G33: nombre de gramme de lipides divisé par 2
A35: Glucides
A36: Matin | B36: =F36 -> 161.4257103 | F36: =B21/2 -> 161.4257103 | G36: nombre de gramme de glucides divisé par 2
A37: Midi | B37: =F37 -> 0 | F37: 0 | G37: PAS A MIDI (PIQUE D'INSULINE)
A38: Soir | B38: =F38 -> 161.4257103 | F38: =B21/2 -> 161.4257103 | G38: nombre de gramme de glucides divisé par 2
A40: Exemple d'aliments
A42: Protéines
A43: · Proteines
A44: · Whey
A45: · Oeufs
A46: · Viande poulet dinde
A47: · Poisson
A49: Lipides
A50: · Avocats
A51: · Oeufs
A52: · Huiles
A53: · Poisson
A54: · Amandes Noix
A56: Glucides
A57: · Fruits et legumes | B57: · Patates douce | D57: PAS A MIDI
A58: · Légumineuses | B58: · Quinoa | D58: PAS A MIDI
A59: · Avoine | B59: · Riz | D59: PAS A MIDI
A60: · Pâtes | D60: PAS A MIDI

Sheet Calculation valeur nutritive
A1: Nom aliment | B1: Qté | C1: Quand | D1: Protéines pour 100g | E1: Lipides pour 100g | F1: Glucides pour 100g | G1: Kcal pour 100g | H1: Type | I1: Mesures | J1: Check | L1: Par jour total autorisé | N1: Solde | U1: ligne de plaj | V1: col K
A2: Pomme | B2: 1 | C2: =IFERROR(VLOOKUP(A2,plaj,11,FALSE),0) -> Matin | D2: =IFERROR(VLOOKUP(A2,plaj,2,FALSE),0) -> 0.75 | E2: =IFERROR(VLOOKUP(A2,plaj,3,FALSE),0) -> 0.5 | F2: =IFERROR(VLOOKUP(A2,plaj,4,FALSE),0) -> 35 | G2: =IFERROR(VLOOKUP(A2,plaj,5,FALSE),0) -> 130 | H2: =IFERROR(VLOOKUP(A2,plaj,6,FALSE),0) -> Bas | I2: =IFERROR(VLOOKUP(A2,plaj,8,FALSE),0) -> 250 g = 1 pomme | J2: =IFERROR(VLOOKUP(A2,plaj,9,FALSE),"") -> ✓ | L2: Kcal par jour | M2: =CALCUL!B4 -> 2134.257103 | N2: =M2-SUM(G2:G8,R10+R15+R20+R25+Q29) -> 1069.857103 | U2: =IFERROR(MATCH(A2,alim,0),"") -> 43 | V2: =IFERROR(INDEX(plaj,U2,11),"") -> Matin
A3: yaourt nature | B3: 1 | C3: =IFERROR(VLOOKUP(A3,plaj,11,FALSE),0) -> Matin | D3: =IFERROR(VLOOKUP(A3,plaj,2,FALSE),0) -> 4 | E3: =IFERROR(VLOOKUP(A3,plaj,3,FALSE),0) -> 1 | F3: =IFERROR(VLOOKUP(A3,plaj,4,FALSE),0) -> 4.5 | G3: =IFERROR(VLOOKUP(A3,plaj,5,FALSE),0) -> 51 | H3: =IFERROR(VLOOKUP(A3,plaj,6,FALSE),0) -> Bas | I3: =IFERROR(VLOOKUP(A3,plaj,8,FALSE),0) -> 100 g | J3: =IFERROR(VLOOKUP(A3,plaj,9,FALSE),"") -> ✓ | L3: Protéines par jour | M3: =CALCUL!B9 -> 104 | N3: =M3-SUM(D2:D8,O10+O15+O20+O25+N29) -> 30.09 | U3: 57 | V3: Matin
A4: Banane | B4: 1 | C4: =IFERROR(VLOOKUP(A4,plaj,11,FALSE),0) -> 6h-7h | D4: =IFERROR(VLOOKUP(A4,plaj,2,FALSE),0) -> 2.6 | E4: =IFERROR(VLOOKUP(A4,plaj,3,FALSE),0) -> 0.8 | F4: =IFERROR(VLOOKUP(A4,plaj,4,FALSE),0) -> 54 | G4: =IFERROR(VLOOKUP(A4,plaj,5,FALSE),0) -> 210 | H4: =IFERROR(VLOOKUP(A4,plaj,6,FALSE),0) -> Moyen | I4: =IFERROR(VLOOKUP(A4,plaj,8,FALSE),0) -> 200 g = 1 banane | J4: =IFERROR(VLOOKUP(A4,plaj,9,FALSE),"") -> ✓ | L4: Lipides par jour | M4: =CALCUL!B15 -> 47.42793562 | N4: =M4-SUM(E2:E8,P10+P15+P20+P25+O29) -> 30.46793562 | U4: 6 | V4: 6h-7h
A5: Tomates | B5: 2 | C5: =IFERROR(VLOOKUP(A5,plaj,11,FALSE),0) -> Soir | D5: =IFERROR(VLOOKUP(A5,plaj,2,FALSE),0) -> 0.86 | E5: =IFERROR(VLOOKUP(A5,plaj,3,FALSE),0) -> 0.26 | F5: =IFERROR(VLOOKUP(A5,plaj,4,FALSE),0) -> 2.26 | G5: =IFERROR(VLOOKUP(A5,plaj,5,FALSE),0) -> 18.4 | H5: =IFERROR(VLOOKUP(A5,plaj,6,FALSE),0) -> Bas | I5: =IFERROR(VLOOKUP(A5,plaj,8,FALSE),0) -> 100 g | J5: =IFERROR(VLOOKUP(A5,plaj,9,FALSE),"") -> ✓ | L5: Glucides par jour | M5: =CALCUL!B21 -> 322.8514206 | N5: =M5-SUM(F2:F8,Q10+Q15+Q20+Q25+P29) -> 164.7914206 | U5: 54 | V5: Soir
A6: Whey | B6: 150 | C6: =IFERROR(VLOOKUP(A6,plaj,11,FALSE),0) -> Matin et 6h-7h | D6: =IFERROR(VLOOKUP(A6,plaj,2,FALSE),0) -> 24.2 | E6: =IFERROR(VLOOKUP(A6,plaj,3,FALSE),0) -> 0.4 | F6: =IFERROR(VLOOKUP(A6,plaj,4,FALSE),0) -> 1.3 | G6: =IFERROR(VLOOKUP(A6,plaj,5,FALSE),0) -> 110 | H6: =IFERROR(VLOOKUP(A6,plaj,6,FALSE),0) -> rien | I6: =IFERROR(VLOOKUP(A6,plaj,8,FALSE),0) -> 1 portion | J6: =IFERROR(VLOOKUP(A6,plaj,9,FALSE),"") -> ✓ | U6: 56 | V6: Matin et 6h-7h
A7: Dinde | B7: 100 | C7: =IFERROR(VLOOKUP(A7,plaj,11,FALSE),0) -> Midi | D7: =IFERROR(VLOOKUP(A7,plaj,2,FALSE),0) -> 28.5 | E7: =IFERROR(VLOOKUP(A7,plaj,3,FALSE),0) -> 7 | F7: =IFERROR(VLOOKUP(A7,plaj,4,FALSE),0) -> 0 | G7: =IFERROR(VLOOKUP(A7,plaj,5,FALSE),0) -> 170 | H7: =IFERROR(VLOOKUP(A7,plaj,6,FALSE),0) -> rien | I7: =IFERROR(VLOOKUP(A7,plaj,8,FALSE),0) -> 100 g cuit | J7: =IFERROR(VLOOKUP(A7,plaj,9,FALSE),"") -> ✓ | U7: 19 | V7: Midi
A8: Avoine | B8: 100 | C8: =IFERROR(VLOOKUP(A8,plaj,11,FALSE),0) -> Matin | D8: =IFERROR(VLOOKUP(A8,plaj,2,FALSE),0) -> 13 | E8: =IFERROR(VLOOKUP(A8,plaj,3,FALSE),0) -> 7 | F8: =IFERROR(VLOOKUP(A8,plaj,4,FALSE),0) -> 61 | G8: =IFERROR(VLOOKUP(A8,plaj,5,FALSE),0) -> 375 | H8: =IFERROR(VLOOKUP(A8,plaj,6,FALSE),0) -> Moyen | I8: =IFERROR(VLOOKUP(A8,plaj,8,FALSE),0) -> 100 g | J8: =IFERROR(VLOOKUP(A8,plaj,9,FALSE),"") -> ✓ | L8: Nom aliment | M8: Mesures calcul | N8: Mesures | O8: Protéines | P8: Lipides | Q8: Glucides | R8: Kcal | S8: Check | U8: 4 | V8: Matin
A9: Ananas | B9: 75 | C9: =IFERROR(VLOOKUP(A9,plaj,11,FALSE),0) -> 6h-7h | D9: =IFERROR(VLOOKUP(A9,plaj,2,FALSE),0) -> 0.5 | E9: =IFERROR(VLOOKUP(A9,plaj,3,FALSE),0) -> 0.2 | F9: =IFERROR(VLOOKUP(A9,plaj,4,FALSE),0) -> 13 | G9: =IFERROR(VLOOKUP(A9,plaj,5,FALSE),0) -> 50 | H9: =IFERROR(VLOOKUP(A9,plaj,6,FALSE),0) -> Moyen | I9: =IFERROR(VLOOKUP(A9,plaj,8,FALSE),0) -> 100 g | J9: =IFERROR(VLOOKUP(A9,plaj,9,FALSE),"") -> ✓ | L9: Avoine | M9: =IFERROR(VLOOKUP(L9,'recherveV Source'!A1:G114,7,FALSE),0) -> 100 | N9: =IFERROR(VLOOKUP(L9,'recherveV Source'!A2:J111,10,FALSE),0) -> g | O9: =IFERROR(VLOOKUP(L9,'recherveV Source'!A1:G114,2,FALSE),0) -> 13 | P9: =IFERROR(VLOOKUP(L9,'recherveV Source'!A1:G114,3,FALSE),0) -> 7 | Q9: =IFERROR(VLOOKUP(L9,'recherveV Source'!A1:G114,4,FALSE),0) -> 61 | R9: =IFERROR(VLOOKUP(L9,'recherveV Source'!A1:G114,5,FALSE),0) -> 375 | S9: =IFERROR(VLOOKUP(L9,'recherveV Source'!A2:I189,9,FALSE),"") -> ✓ | U9: =IFERROR(MATCH(#REF!,alim,0),"") -> 
C10: =IFERROR(VLOOKUP(A10,plaj,11,FALSE),0) -> 0 | D10: =IFERROR(VLOOKUP(A10,plaj,2,FALSE),0) -> 0 | E10: =IFERROR(VLOOKUP(A10,plaj,3,FALSE),0) -> 0 | F10: =IFERROR(VLOOKUP(A10,plaj,4,FALSE),0) -> 0 | G10: =IFERROR(VLOOKUP(A10,plaj,5,FALSE),0) -> 0 | H10: =IFERROR(VLOOKUP(A10,plaj,6,FALSE),0) -> 0 | I10: =IFERROR(VLOOKUP(A10,plaj,8,FALSE),0) -> 0 | J10: =IFERROR(VLOOKUP(A10,plaj,9,FALSE),"") ->  | L10: Mesures à attribuer => | N10: =N9 -> g | O10: =IFERROR(O9/M9*M10,0) -> 0 | P10: =IFERROR(P9/M9*M10,0) -> 0 | Q10: =IFERROR(Q9/M9*M10,0) -> 0 | R10: =IFERROR(R9/M9*M10,0) -> 0 | S10: =S9 -> ✓ | U10: =IFERROR(MATCH(#REF!,alim,0),"") -> 
C11: =IFERROR(VLOOKUP(A11,plaj,11,FALSE),0) -> 0 | D11: =IFERROR(VLOOKUP(A11,plaj,2,FALSE),0) -> 0 | E11: =IFERROR(VLOOKUP(A11,plaj,3,FALSE),0) -> 0 | F11: =IFERROR(VLOOKUP(A11,plaj,4,FALSE),0) -> 0 | G11: =IFERROR(VLOOKUP(A11,plaj,5,FALSE),0) -> 0 | H11: =IFERROR(VLOOKUP(A11,plaj,6,FALSE),0) -> 0 | I11: =IFERROR(VLOOKUP(A11,plaj,8,FALSE),0) -> 0 | J11: =IFERROR(VLOOKUP(A11,plaj,9,FALSE),"") ->  | U11: =IFERROR(MATCH(#REF!,alim,0),"") -> 
C12: =IFERROR(VLOOKUP(A12,plaj,11,FALSE),0) -> 0 | D12: =IFERROR(VLOOKUP(A12,plaj,2,FALSE),0) -> 0 | E12: =IFERROR(VLOOKUP(A12,plaj,3,FALSE),0) -> 0 | F12: =IFERROR(VLOOKUP(A12,plaj,4,FALSE),0) -> 0 | G12: =IFERROR(VLOOKUP(A12,plaj,5,FALSE),0) -> 0 | H12: =IFERROR(VLOOKUP(A12,plaj,6,FALSE),0) -> 0 | I12: =IFERROR(VLOOKUP(A12,plaj,8,FALSE),0) -> 0 | J12: =IFERROR(VLOOKUP(A12,plaj,9,FALSE),"") ->  | U12: =IFERROR(MATCH(#REF!,alim,0),"") -> 
C13: =IFERROR(VLOOKUP(A13,plaj,11,FALSE),0) -> 0 | D13: =IFERROR(VLOOKUP(A13,plaj,2,FALSE),0) -> 0 | E13: =IFERROR(VLOOKUP(A13,plaj,3,FALSE),0) -> 0 | F13: =IFERROR(VLOOKUP(A13,plaj,4,FALSE),0) -> 0 | G13: =IFERROR(VLOOKUP(A13,plaj,5,FALSE),0) -> 0 | H13: =IFERROR(VLOOKUP(A13,plaj,6,FALSE),0) -> 0 | I13: =IFERROR(VLOOKUP(A13,plaj,8,FALSE),0) -> 0 | J13: =IFERROR(VLOOKUP(A13,plaj,9,FALSE),"") ->  | L13: Nom aliment | M13: Mesures calcul | N13: Mesures | O13: Protéines | P13: Lipides | Q13: Glucides | R13: Kcal | S13: Check | U13: =IFERROR(MATCH(#REF!,alim,0),"") -> 
C14: =IFERROR(VLOOKUP(A14,plaj,11,FALSE),0) -> 0 | D14: =IFERROR(VLOOKUP(A14,plaj,2,FALSE),0) -> 0 | E14: =IFERROR(VLOOKUP(A14,plaj,3,FALSE),0) -> 0 | F14: =IFERROR(VLOOKUP(A14,plaj,4,FALSE),0) -> 0 | G14: =IFERROR(VLOOKUP(A14,plaj,5,FALSE),0) -> 0 | H14: =IFERROR(VLOOKUP(A14,plaj,6,FALSE),0) -> 0 | I14: =IFERROR(VLOOKUP(A14,plaj,8,FALSE),0) -> 0 | J14: =IFERROR(VLOOKUP(A14,plaj,9,FALSE),"") ->  | L14: Poulet | M14: =IFERROR(VLOOKUP(L14,'recherveV Source'!A2:J228,7,FALSE),0) -> 150 | N14: =IFERROR(VLOOKUP(L14,'recherveV Source'!A2:J111,10,FALSE),0) -> g cuits | O14: =IFERROR(VLOOKUP(L14,'recherveV Source'!A2:I189,2,FALSE),0) -> 44.7 | P14: =IFERROR(VLOOKUP(L14,'recherveV Source'!A2:I189,3,FALSE),0) -> 11.7 | Q14: =IFERROR(VLOOKUP(L14,'recherveV Source'!A2:I189,4,FALSE),0) -> 0 | R14: =IFERROR(VLOOKUP(L14,'recherveV Source'!A2:I189,5,FALSE),0) -> 295.5 | S14: =IFERROR(VLOOKUP(L14,'recherveV Source'!A2:I189,9,FALSE),"") -> ✓ | U14: =IFERROR(MATCH(#REF!,alim,0),"") -> 
C15: =IFERROR(VLOOKUP(A15,plaj,11,FALSE),0) -> 0 | D15: =IFERROR(VLOOKUP(A15,plaj,2,FALSE),0) -> 0 | E15: =IFERROR(VLOOKUP(A15,plaj,3,FALSE),0) -> 0 | F15: =IFERROR(VLOOKUP(A15,plaj,4,FALSE),0) -> 0 | G15: =IFERROR(VLOOKUP(A15,plaj,5,FALSE),0) -> 0 | H15: =IFERROR(VLOOKUP(A15,plaj,6,FALSE),0) -> 0 | I15: =IFERROR(VLOOKUP(A15,plaj,8,FALSE),0) -> 0 | J15: =IFERROR(VLOOKUP(A15,plaj,9,FALSE),"") ->  | N15: =N14 -> g cuits | O15: =IFERROR(O14/M14*M15,0) -> 0 | P15: =IFERROR(P14/M14*M15,0) -> 0 | Q15: =IFERROR(Q14/M14*M15,0) -> 0 | R15: =IFERROR(R14/M14*M15,0) -> 0 | S15: =S14 -> ✓ | U15: =IFERROR(MATCH(#REF!,alim,0),"") -> 
C16: =IFERROR(VLOOKUP(A16,plaj,11,FALSE),0) -> 0 | D16: =IFERROR(VLOOKUP(A16,plaj,2,FALSE),0) -> 0 | E16: =IFERROR(VLOOKUP(A16,plaj,3,FALSE),0) -> 0 | F16: =IFERROR(VLOOKUP(A16,plaj,4,FALSE),0) -> 0 | G16: =IFERROR(VLOOKUP(A16,plaj,5,FALSE),0) -> 0 | H16: =IFERROR(VLOOKUP(A16,plaj,6,FALSE),0) -> 0 | I16: =IFERROR(VLOOKUP(A16,plaj,8,FALSE),0) -> 0 | J16: =IFERROR(VLOOKUP(A16,plaj,9,FALSE),"") ->  | U16: =IFERROR(MATCH(L9,alim,0),"") -> 4 | V16: =IFERROR(INDEX(plaj,U16,11),"") -> Matin
C17: =IFERROR(VLOOKUP(A17,plaj,11,FALSE),0) -> 0 | D17: =IFERROR(VLOOKUP(A17,plaj,2,FALSE),0) -> 0 | E17: =IFERROR(VLOOKUP(A17,plaj,3,FALSE),0) -> 0 | F17: =IFERROR(VLOOKUP(A17,plaj,4,FALSE),0) -> 0 | G17: =IFERROR(VLOOKUP(A17,plaj,5,FALSE),0) -> 0 | H17: =IFERROR(VLOOKUP(A17,plaj,6,FALSE),0) -> 0 | I17: =IFERROR(VLOOKUP(A17,plaj,8,FALSE),0) -> 0 | J17: =IFERROR(VLOOKUP(A17,plaj,9,FALSE),"") ->  | U17: =IFERROR(MATCH(L14,alim,0),"") -> 44 | V17: =IFERROR(INDEX(plaj,U17,11),"") -> Midi
C18: =IFERROR(VLOOKUP(A18,plaj,11,FALSE),0) -> 0 | D18: =IFERROR(VLOOKUP(A18,plaj,2,FALSE),0) -> 0 | E18: =IFERROR(VLOOKUP(A18,plaj,3,FALSE),0) -> 0 | F18: =IFERROR(VLOOKUP(A18,plaj,4,FALSE),0) -> 0 | G18: =IFERROR(VLOOKUP(A18,plaj,5,FALSE),0) -> 0 | H18: =IFERROR(VLOOKUP(A18,plaj,6,FALSE),0) -> 0 | I18: =IFERROR(VLOOKUP(A18,plaj,8,FALSE),0) -> 0 | J18: =IFERROR(VLOOKUP(A18,plaj,9,FALSE),"") ->  | L18: Nom aliment | M18: Mesures calcul | N18: Mesures | O18: Protéines | P18: Lipides | Q18: Glucides | R18: Kcal | S18: Check | U18: =IFERROR(MATCH(L19,alim,0),"") -> 36 | V18: =IFERROR(INDEX(plaj,U18,11),"") -> Soir
C19: =IFERROR(VLOOKUP(A19,plaj,11,FALSE),0) -> 0 | D19: =IFERROR(VLOOKUP(A19,plaj,2,FALSE),0) -> 0 | E19: =IFERROR(VLOOKUP(A19,plaj,3,FALSE),0) -> 0 | F19: =IFERROR(VLOOKUP(A19,plaj,4,FALSE),0) -> 0 | G19: =IFERROR(VLOOKUP(A19,plaj,5,FALSE),0) -> 0 | H19: =IFERROR(VLOOKUP(A19,plaj,6,FALSE),0) -> 0 | I19: =IFERROR(VLOOKUP(A19,plaj,8,FALSE),0) -> 0 | J19: =IFERROR(VLOOKUP(A19,plaj,9,FALSE),"") ->  | L19: Patate eau | M19: =IFERROR(VLOOKUP(L19,'recherveV Source'!A2:J228,7,FALSE),0) -> 100 | N19: =IFERROR(VLOOKUP(L19,'recherveV Source'!A2:J111,10,FALSE),0) -> g cuites à l'eau | O19: =IFERROR(VLOOKUP(L19,'recherveV Source'!A2:I189,2,FALSE),0) -> 2 | P19: =IFERROR(VLOOKUP(L19,'recherveV Source'!A2:I189,3,FALSE),0) -> 0.34 | Q19: =IFERROR(VLOOKUP(L19,'recherveV Source'!A2:I189,4,FALSE),0) -> 16 | R19: =IFERROR(VLOOKUP(L19,'recherveV Source'!A2:I189,5,FALSE),0) -> 90 | S19: =IFERROR(VLOOKUP(L19,'recherveV Source'!A2:I189,9,FALSE),"") -> ✓ | U19: =IFERROR(MATCH(L24,alim,0),"") ->  | V19: =IFERROR(INDEX(plaj,U19,11),"") -> 
C20: =IFERROR(VLOOKUP(A20,plaj,11,FALSE),0) -> 0 | D20: =IFERROR(VLOOKUP(A20,plaj,2,FALSE),0) -> 0 | E20: =IFERROR(VLOOKUP(A20,plaj,3,FALSE),0) -> 0 | F20: =IFERROR(VLOOKUP(A20,plaj,4,FALSE),0) -> 0 | G20: =IFERROR(VLOOKUP(A20,plaj,5,FALSE),0) -> 0 | H20: =IFERROR(VLOOKUP(A20,plaj,6,FALSE),0) -> 0 | I20: =IFERROR(VLOOKUP(A20,plaj,8,FALSE),0) -> 0 | J20: =IFERROR(VLOOKUP(A20,plaj,9,FALSE),"") ->  | N20: =N19 -> g cuites à l'eau | O20: =IFERROR(O19/M19*M20,0) -> 0 | P20: =IFERROR(P19/M19*M20,0) -> 0 | Q20: =IFERROR(Q19/M19*M20,0) -> 0 | R20: =IFERROR(R19/M19*M20,0) -> 0 | S20: =S19 -> ✓ | U20: =IFERROR(MATCH(L28,alim,0),"") -> 10 | V20: =IFERROR(INDEX(plaj,U20,11),"") -> Soir
C21: =IFERROR(VLOOKUP(A21,plaj,11,FALSE),0) -> 0 | D21: =IFERROR(VLOOKUP(A21,plaj,2,FALSE),0) -> 0 | E21: =IFERROR(VLOOKUP(A21,plaj,3,FALSE),0) -> 0 | F21: =IFERROR(VLOOKUP(A21,plaj,4,FALSE),0) -> 0 | G21: =IFERROR(VLOOKUP(A21,plaj,5,FALSE),0) -> 0 | H21: =IFERROR(VLOOKUP(A21,plaj,6,FALSE),0) -> 0 | I21: =IFERROR(VLOOKUP(A21,plaj,8,FALSE),0) -> 0 | J21: =IFERROR(VLOOKUP(A21,plaj,9,FALSE),"") -> 
C22: =IFERROR(VLOOKUP(A22,plaj,11,FALSE),0) -> 0 | D22: =IFERROR(VLOOKUP(A22,plaj,2,FALSE),0) -> 0 | E22: =IFERROR(VLOOKUP(A22,plaj,3,FALSE),0) -> 0 | F22: =IFERROR(VLOOKUP(A22,plaj,4,FALSE),0) -> 0 | G22: =IFERROR(VLOOKUP(A22,plaj,5,FALSE),0) -> 0 | H22: =IFERROR(VLOOKUP(A22,plaj,6,FALSE),0) -> 0 | I22: =IFERROR(VLOOKUP(A22,plaj,8,FALSE),0) -> 0 | J22: =IFERROR(VLOOKUP(A22,plaj,9,FALSE),"") -> 
C23: =IFERROR(VLOOKUP(A23,plaj,11,FALSE),0) -> 0 | D23: =IFERROR(VLOOKUP(A23,plaj,2,FALSE),0) -> 0 | E23: =IFERROR(VLOOKUP(A23,plaj,3,FALSE),0) -> 0 | F23: =IFERROR(VLOOKUP(A23,plaj,4,FALSE),0) -> 0 | G23: =IFERROR(VLOOKUP(A23,plaj,5,FALSE),0) -> 0 | H23: =IFERROR(VLOOKUP(A23,plaj,6,FALSE),0) -> 0 | I23: =IFERROR(VLOOKUP(A23,plaj,8,FALSE),0) -> 0 | J23: =IFERROR(VLOOKUP(A23,plaj,9,FALSE),"") ->  | L23: Nom aliment | M23: Mesures calcul | N23: Mesures | O23: Protéines | P23: Lipides | Q23: Glucides | R23: Kcal | S23: Check
C24: =IFERROR(VLOOKUP(A24,plaj,11,FALSE),0) -> 0 | D24: =IFERROR(VLOOKUP(A24,plaj,2,FALSE),0) -> 0 | E24: =IFERROR(VLOOKUP(A24,plaj,3,FALSE),0) -> 0 | F24: =IFERROR(VLOOKUP(A24,plaj,4,FALSE),0) -> 0 | G24: =IFERROR(VLOOKUP(A24,plaj,5,FALSE),0) -> 0 | H24: =IFERROR(VLOOKUP(A24,plaj,6,FALSE),0) -> 0 | I24: =IFERROR(VLOOKUP(A24,plaj,8,FALSE),0) -> 0 | J24: =IFERROR(VLOOKUP(A24,plaj,9,FALSE),"") ->  | M24: =IFERROR(VLOOKUP(L24,'recherveV Source'!A2:J228,7,FALSE),0) -> 0 | N24: =IFERROR(VLOOKUP(L24,'recherveV Source'!A2:J111,10,FALSE),0) -> 0 | O24: =IFERROR(VLOOKUP(L24,'recherveV Source'!A2:J228,2,FALSE),0) -> 0 | P24: =IFERROR(VLOOKUP(L24,'recherveV Source'!A2:J228,3,FALSE),0) -> 0 | Q24: =IFERROR(VLOOKUP(L24,'recherveV Source'!A2:J228,4,FALSE),0) -> 0 | R24: =IFERROR(VLOOKUP(L24,'recherveV Source'!A2:J228,5,FALSE),0) -> 0 | S24: =IFERROR(VLOOKUP(L24,'recherveV Source'!A2:J228,9,FALSE),0) -> 0
C25: =IFERROR(VLOOKUP(A25,plaj,11,FALSE),0) -> 0 | D25: =IFERROR(VLOOKUP(A25,plaj,2,FALSE),0) -> 0 | E25: =IFERROR(VLOOKUP(A25,plaj,3,FALSE),0) -> 0 | F25: =IFERROR(VLOOKUP(A25,plaj,4,FALSE),0) -> 0 | G25: =IFERROR(VLOOKUP(A25,plaj,5,FALSE),0) -> 0 | H25: =IFERROR(VLOOKUP(A25,plaj,6,FALSE),0) -> 0 | I25: =IFERROR(VLOOKUP(A25,plaj,8,FALSE),0) -> 0 | J25: =IFERROR(VLOOKUP(A25,plaj,9,FALSE),"") ->  | M25: 0 | N25: =N24 -> 0 | O25: =IFERROR(O24/M24*M25,0) -> 0 | P25: =IFERROR(P24/M24*M25,0) -> 0 | Q25: =IFERROR(Q24/M24*M25,0) -> 0 | R25: =IFERROR(R24/M24*M25,0) -> 0 | S25: =S24 -> 0
C26: =IFERROR(VLOOKUP(A26,plaj,11,FALSE),0) -> 0 | D26: =IFERROR(VLOOKUP(A26,plaj,2,FALSE),0) -> 0 | E26: =IFERROR(VLOOKUP(A26,plaj,3,FALSE),0) -> 0 | F26: =IFERROR(VLOOKUP(A26,plaj,4,FALSE),0) -> 0 | G26: =IFERROR(VLOOKUP(A26,plaj,5,FALSE),0) -> 0 | H26: =IFERROR(VLOOKUP(A26,plaj,6,FALSE),0) -> 0 | I26: =IFERROR(VLOOKUP(A26,plaj,8,FALSE),0) -> 0 | J26: =IFERROR(VLOOKUP(A26,plaj,9,FALSE),"") -> 
C27: =IFERROR(VLOOKUP(A27,plaj,11,FALSE),0) -> 0 | D27: =IFERROR(VLOOKUP(A27,plaj,2,FALSE),0) -> 0 | E27: =IFERROR(VLOOKUP(A27,plaj,3,FALSE),0) -> 0 | F27: =IFERROR(VLOOKUP(A27,plaj,4,FALSE),0) -> 0 | G27: =IFERROR(VLOOKUP(A27,plaj,5,FALSE),0) -> 0 | H27: =IFERROR(VLOOKUP(A27,plaj,6,FALSE),0) -> 0 | I27: =IFERROR(VLOOKUP(A27,plaj,8,FALSE),0) -> 0 | J27: =IFERROR(VLOOKUP(A27,plaj,9,FALSE),"") ->  | L27: Spécial Biscuits | M27: Mesures calcul | N27: Protéines | O27: Lipides | P27: Glucides | Q27: Kcal | R27: Check
C28: =IFERROR(VLOOKUP(A28,plaj,11,FALSE),0) -> 0 | D28: =IFERROR(VLOOKUP(A28,plaj,2,FALSE),0) -> 0 | E28: =IFERROR(VLOOKUP(A28,plaj,3,FALSE),0) -> 0 | F28: =IFERROR(VLOOKUP(A28,plaj,4,FALSE),0) -> 0 | G28: =IFERROR(VLOOKUP(A28,plaj,5,FALSE),0) -> 0 | H28: =IFERROR(VLOOKUP(A28,plaj,6,FALSE),0) -> 0 | I28: =IFERROR(VLOOKUP(A28,plaj,8,FALSE),0) -> 0 | J28: =IFERROR(VLOOKUP(A28,plaj,9,FALSE),"") ->  | L28: Biscuits | M28: =IFERROR(VLOOKUP(L28,'recherveV Source'!A18:G133,7,FALSE),0) -> 0 | N28: =IFERROR(VLOOKUP(L28,'recherveV Source'!A18:G133,2,FALSE),0) -> 0 | O28: =IFERROR(VLOOKUP(L28,'recherveV Source'!A18:G133,3,FALSE),0) -> 0 | P28: =IFERROR(VLOOKUP(L28,'recherveV Source'!A18:G133,4,FALSE),0) -> 0 | Q28: =IFERROR(VLOOKUP(L28,'recherveV Source'!A18:G133,5,FALSE),0) -> 0 | R28: =IFERROR(VLOOKUP(L28,'recherveV Source'!A2:I189,9,FALSE),"") -> ✓
C29: =IFERROR(VLOOKUP(A29,plaj,11,FALSE),0) -> 0 | D29: =IFERROR(VLOOKUP(A29,plaj,2,FALSE),0) -> 0 | E29: =IFERROR(VLOOKUP(A29,plaj,3,FALSE),0) -> 0 | F29: =IFERROR(VLOOKUP(A29,plaj,4,FALSE),0) -> 0 | G29: =IFERROR(VLOOKUP(A29,plaj,5,FALSE),0) -> 0 | H29: =IFERROR(VLOOKUP(A29,plaj,6,FALSE),0) -> 0 | I29: =IFERROR(VLOOKUP(A29,plaj,8,FALSE),0) -> 0 | J29: =IFERROR(VLOOKUP(A29,plaj,9,FALSE),"") ->  | N29: =N28*M29 -> 0 | O29: =O28*M29 -> 0 | P29: =P28*M29 -> 0 | Q29: =Q28*M29 -> 0 | R29: =R28 -> ✓
C30: =IFERROR(VLOOKUP(A30,plaj,11,FALSE),0) -> 0 | D30: =IFERROR(VLOOKUP(A30,plaj,2,FALSE),0) -> 0 | E30: =IFERROR(VLOOKUP(A30,plaj,3,FALSE),0) -> 0 | F30: =IFERROR(VLOOKUP(A30,plaj,4,FALSE),0) -> 0 | G30: =IFERROR(VLOOKUP(A30,plaj,5,FALSE),0) -> 0 | H30: =IFERROR(VLOOKUP(A30,plaj,6,FALSE),0) -> 0 | I30: =IFERROR(VLOOKUP(A30,plaj,8,FALSE),0) -> 0 | J30: =IFERROR(VLOOKUP(A30,plaj,9,FALSE),"") -> 
C31: =IFERROR(VLOOKUP(A31,plaj,11,FALSE),0) -> 0 | D31: =IFERROR(VLOOKUP(A31,plaj,2,FALSE),0) -> 0 | E31: =IFERROR(VLOOKUP(A31,plaj,3,FALSE),0) -> 0 | F31: =IFERROR(VLOOKUP(A31,plaj,4,FALSE),0) -> 0 | G31: =IFERROR(VLOOKUP(A31,plaj,5,FALSE),0) -> 0 | H31: =IFERROR(VLOOKUP(A31,plaj,6,FALSE),0) -> 0 | I31: =IFERROR(VLOOKUP(A31,plaj,8,FALSE),0) -> 0 | J31: =IFERROR(VLOOKUP(A31,plaj,9,FALSE),"") ->  | L31: Structure du repas
C32: =IFERROR(VLOOKUP(A32,plaj,11,FALSE),0) -> 0 | D32: =IFERROR(VLOOKUP(A32,plaj,2,FALSE),0) -> 0 | E32: =IFERROR(VLOOKUP(A32,plaj,3,FALSE),0) -> 0 | F32: =IFERROR(VLOOKUP(A32,plaj,4,FALSE),0) -> 0 | G32: =IFERROR(VLOOKUP(A32,plaj,5,FALSE),0) -> 0 | H32: =IFERROR(VLOOKUP(A32,plaj,6,FALSE),0) -> 0 | I32: =IFERROR(VLOOKUP(A32,plaj,8,FALSE),0) -> 0 | J32: =IFERROR(VLOOKUP(A32,plaj,9,FALSE),"") ->  | L32: Matin | M32: Midi | N32: 6h-7h | O32: Soir
L33: =IF($V2=$32:$32,$A2,"") -> Pomme | M33: =IF($V2=$32:$32,$A2,"") ->  | N33: =IF($V2=$32:$32,$A2,"") ->  | O33: =IF($V2=$32:$32,$A2,"") -> 
L34: =IF($V3=$32:$32,$A3,"") -> yaourt nature | M34: =IF($V3=$32:$32,$A3,"") ->  | N34: =IF($V3=$32:$32,$A3,"") ->  | O34: =IF($V3=$32:$32,$A3,"") -> 
L35: =IF($V4=$32:$32,$A4,"") ->  | M35: =IF($V4=$32:$32,$A4,"") ->  | N35: =IF($V4=$32:$32,$A4,"") -> Banane | O35: =IF($V4=$32:$32,$A4,"") -> 
L36: =IF($V5=$32:$32,$A5,"") ->  | M36: =IF($V5=$32:$32,$A5,"") ->  | N36: =IF($V5=$32:$32,$A5,"") ->  | O36: =IF($V5=$32:$32,$A5,"") -> Tomates
L37: =IF($V6=$32:$32,$A6,"") ->  | M37: =IF($V6=$32:$32,$A6,"") ->  | N37: =IF($V6=$32:$32,$A6,"") ->  | O37: =IF($V6=$32:$32,$A6,"") -> 
L38: =IF($V7=$32:$32,$A7,"") ->  | M38: =IF($V7=$32:$32,$A7,"") -> Dinde | N38: =IF($V7=$32:$32,$A7,"") ->  | O38: =IF($V7=$32:$32,$A7,"") -> 
L39: =IF($V8=$32:$32,$A8,"") -> Avoine | M39: =IF($V8=$32:$32,$A8,"") ->  | N39: =IF($V8=$32:$32,$A8,"") ->  | O39: =IF($V8=$32:$32,$A8,"") -> 
L40: =IF($V9=$32:$32,#REF!,"") ->  | M40: =IF($V9=$32:$32,#REF!,"") ->  | N40: =IF($V9=$32:$32,#REF!,"") ->  | O40: =IF($V9=$32:$32,#REF!,"") -> 
L41: =IF($V10=$32:$32,#REF!,"") ->  | M41: =IF($V10=$32:$32,#REF!,"") ->  | N41: =IF($V10=$32:$32,#REF!,"") ->  | O41: =IF($V10=$32:$32,#REF!,"") -> 
L42: =IF($V11=$32:$32,#REF!,"") ->  | M42: =IF($V11=$32:$32,#REF!,"") ->  | N42: =IF($V11=$32:$32,#REF!,"") ->  | O42: =IF($V11=$32:$32,#REF!,"") -> 
L43: =IF($V12=$32:$32,#REF!,"") ->  | M43: =IF($V12=$32:$32,#REF!,"") ->  | N43: =IF($V12=$32:$32,#REF!,"") ->  | O43: =IF($V12=$32:$32,#REF!,"") -> 
L44: =IF($V13=$32:$32,#REF!,"") ->  | M44: =IF($V13=$32:$32,#REF!,"") ->  | N44: =IF($V13=$32:$32,#REF!,"") ->  | O44: =IF($V13=$32:$32,#REF!,"") -> 
L45: =IF($V14=$32:$32,#REF!,"") ->  | M45: =IF($V14=$32:$32,#REF!,"") ->  | N45: =IF($V14=$32:$32,#REF!,"") ->  | O45: =IF($V14=$32:$32,#REF!,"") -> 
L46: =IF($V15=$32:$32,#REF!,"") ->  | M46: =IF($V15=$32:$32,#REF!,"") ->  | N46: =IF($V15=$32:$32,#REF!,"") ->  | O46: =IF($V15=$32:$32,#REF!,"") -> 
L47: =IF($V16=$32:$32,$L9,"") -> Avoine | M47: =IF($V16=$32:$32,$L9,"") ->  | N47: =IF($V16=$32:$32,$L9,"") ->  | O47: =IF($V16=$32:$32,$L9,"") -> 
L48: =IF($V17=$32:$32,$L14,"") ->  | M48: =IF($V17=$32:$32,$L14,"") -> Poulet | N48: =IF($V17=$32:$32,$L14,"") ->  | O48: =IF($V17=$32:$32,$L14,"") -> 
L49: =IF($V18=$32:$32,$L19,"") ->  | M49: =IF($V18=$32:$32,$L19,"") ->  | N49: =IF($V18=$32:$32,$L19,"") ->  | O49: =IF($V18=$32:$32,$L19,"") -> Patate eau
L50: =IF($V19=$32:$32,$L24,"") ->  | M50: =IF($V19=$32:$32,$L24,"") ->  | N50: =IF($V19=$32:$32,$L24,"") ->  | O50: =IF($V19=$32:$32,$L24,"") -> 
L51: =IF($V20=$32:$32,$L28,"") ->  | M51: =IF($V20=$32:$32,$L28,"") ->  | N51: =IF($V20=$32:$32,$L28,"") ->  | O51: =IF($V20=$32:$32,$L28,"") -> Biscuits

Sheet Menu
A3: Menus | B3: Quantité
A4: 6h-7h | B4: 76
A5: Banane | B5: 1
A6: Ananas | B6: 75
A7: Matin | B7: 102
A8: Avoine | B8: 100
A9: Pomme | B9: 1
A10: yaourt nature | B10: 1
A11: Matin et 6h-7h | B11: 150
A12: Whey | B12: 150
A13: Midi | B13: 100
A14: Dinde | B14: 100
A15: Soir | B15: 2
A16: Tomates | B16: 2

Sheet recherveV Source
A1: Nom aliment | B1: Protéines pour 100g | C1: Lipides pour 100g | D1: Glucides pour 100g | E1: Kcal pour 100g | F1: Type | G1: Mesures Calcul | H1: Mesures Texte | I1: Check | J1: MESURE TEXTE UNIQUEMENT | K1: ça se mange quand ?
A2: 9 Chicken | B2: 25 | C2: 21 | D2: 28 | E2: 400 | F2: Elevé | G2: 9 | H2: x9 Chicken | I2: =IF(E2="?","❌","✓") -> ✓ | J2: Chicken | K2: Soir | N2: =OFFSET($A$2:$K$2,,,COUNTA($A:$A)-1) -> 
A3: Ananas | B3: 0.5 | C3: 0.2 | D3: 13 | E3: 50 | F3: Moyen | G3: 100 | H3: 100 g | I3: ✓ | J3: g | K3: 6h-7h
A4: Avocat | B4: 1.61 | C4: 13.8 | D4: 3.67 | E4: 165 | F4: Bas | G4: 100 | H4: 100 g | I4: ✓ | J4: g | K4: Soir
A5: Avoine | B5: 13 | C5: 7 | D5: 61 | E5: 375 | F5: Moyen | G5: 100 | H5: 100 g | I5: ✓ | J5: g | K5: Matin
A6: Baguette | B6: ? | C6: ? | D6: ? | E6: ? | F6: Elevé | I6: ❌ | K6: Soir
A7: Banane | B7: 2.6 | C7: 0.8 | D7: 54 | E7: 210 | F7: Moyen | G7: 200 | H7: 200 g = 1 banane | I7: ✓ | J7: g = 1 banane | K7: 6h-7h
A8: BCAA | B8: 0 | C8: 0 | D8: 0 | E8: 67 | F8: rien | G8: 1 | H8: 1 portion | I8: ✓ | J8: portion | K8: 6h-7h
A9: Big Mac | B9: 26 | C9: 25 | D9: 42 | E9: 500 | F9: Elevé | G9: 1 | H9: 1 Big Mac | I9: ✓ | J9: Big mac | K9: Soir
A10: Big Tasty | B10: 46 | C10: 49 | D10: 50 | E10: 833 | F10: Elevé | G10: 1 | H10: 1 Big Tasty | I10: ✓ | J10: Big Tasty | K10: Soir
A11: Biscuits | B11: 0.86 | C11: 0 | D11: 6.73 | E11: 51.41 | F11: Moyen | G11: 1 | H11: 1 unité | I11: ✓ | J11: unité | K11: Soir
A12: Boulgour | B12: ? | C12: ? | D12: ? | E12: ? | F12: Moyen | I12: ❌
A13: Brocoli | B13: 2.4 | C13: 0.4 | D13: 7.2 | E13: 35 | F13: Bas | G13: 100 | H13: 100 g cuits | I13: ✓ | J13: g cuits | K13: Soir
A14: Cacahuètes | B14: ? | C14: ? | D14: ? | E14: ? | F14: Bas | I14: ❌
A15: Carottes | B15: 0.77 | C15: 0.26 | D15: 6.45 | E15: 36.4 | F15: Bas | G15: 100 | H15: 100 g crues | I15: ✓ | J15: g crues | K15: Soir
A16: Champignon | B16: 2.2 | C16: 0.5 | D16: 5.3 | E16: 29 | F16: Bas | G16: 100 | H16: 100 g cuit | I16: ✓ | J16: g cuit | K16: Soir
A17: Concombre | B17: 0.64 | C17: 0.11 | D17: 2.04 | E17: 14 | F17: Bas | G17: 100 | H17: 100 g cru | I17: ✓ | J17: g cru | K17: Soir
A18: Couscous | B18: ? | C18: ? | D18: ? | E18: ? | F18: Moyen | I18: ❌ | M18: 57
A19: Croissant | B19: 5.3 | C19: 13.7 | D19: 29.8 | E19: 300 | F19: Elevé | G19: 1 | H19: 1 croissant | I19: ✓ | J19: croissant | K19: Matin
A20: Dinde | B20: 28.5 | C20: 7 | D20: 0 | E20: 170 | F20: rien | G20: 100 | H20: 100 g cuit | I20: ✓ | J20: g cuit | K20: Midi
A21: Double Big Mac | B21: 42 | C21: 35 | D21: 43 | E21: 660 | F21: Elevé | G21: 1 | H21: 1 Double Big Mac | I21: ✓ | J21: Double Big Mac | K21: Soir | M21: données pour la liste
A22: Filet de boeuf | B22: 26.5 | C22: 8 | D22: 0 | E22: 267 | F22: rien | G22: 100 | H22: 100 g cuit | I22: ✓ | J22: g cuit | K22: Soir | M22: Avoine
A23: Filet de porc | B23: 29.9 | C23: 8.1 | D23: 0 | E23: 201 | F23: rien | G23: 100 | H23: 100 g cuit | I23: ✓ | J23: g cuit | K23: Soir | M23: Carottes
A24: Filet de Veau | B24: 28.4 | C24: 5.2 | D24: 0 | E24: 138 | F24: rien | G24: 100 | H24: 100 g cuit | I24: ✓ | J24: g cuit | K24: Soir | M24: Dinde
A25: Frites Mcdo | B25: 5 | C25: 22 | D25: 55 | E25: 450 | F25: Elevé | G25: 1 | H25: 1 Frites Medium | I25: ✓ | J25: Frites Medium | K25: Soir | M25: Filet de boeuf
A26: Gnocchi | B26: ? | C26: ? | D26: ? | E26: ? | F26: Elevé | I26: ❌ | K26: Soir | M26: Filet de porc
A27: Haricot rouges | B27: ? | C27: ? | D27: ? | E27: ? | F27: Bas | I27: ❌ | M27: Filet de Veau
A28: Haricots blancs | B28: ? | C28: ? | D28: ? | E28: ? | F28: Bas | I28: ❌ | M28: Lentilles
A29: Haricots verts | B29: 2 | C29: 0.17 | D29: 3 | E29: 29.4 | F29: Bas | G29: 100 | H29: 100 g cuits | I29: ✓ | J29: g cuits | K29: Soir | M29: Patate eau
A30: Lasagnes | B30: ? | C30: ? | D30: ? | E30: ? | F30: Elevé | I30: ❌ | K30: Soir | M30: Pâtes
A31: Lentilles | B31: 9 | C31: 0.4 | D31: 20 | E31: 130 | F31: Bas | G31: 100 | H31: 100 g cuits | I31: ✓ | J31: g cuits | K31: Soir | M31: Pizza
A32: Mangue | B32: 0.5 | C32: 0.3 | D32: 17.6 | E32: 67 | F32: Moyen | G32: 100 | H32: 100 g | I32: ✓ | J32: g | K32: 6h-7h | M32: Poisson
A33: McFlurry M&M's | B33: 7 | C33: 12 | D33: 58 | E33: 370 | F33: Elevé | G33: 1 | H33: 1 Boîte normal | I33: ✓ | J33: Boîte normal | K33: Soir | M33: Poulet
A34: Noix | B34: ? | C34: ? | D34: ? | E34: ? | F34: rien | I34: =IF(E34="?","❌","✓") -> ❌ | M34: ragout de veau
A35: Pain | B35: ? | C35: ? | D35: ? | E35: ? | F35: Moyen | I35: ❌ | M35: Riz
A36: Pain au chocolat | B36: 6.9 | C36: 21.1 | D36: 47.4 | E36: 414 | F36: Elevé | G36: 1 | H36: 1 pain | I36: ✓ | J36: pain | K36: Matin
A37: Patate eau | B37: 2 | C37: 0.34 | D37: 16 | E37: 90 | F37: Elevé | G37: 100 | H37: 100 g cuites à l'eau | I37: ✓ | J37: g cuites à l'eau | K37: Soir
A38: Pâtes | B38: 12.5 | C38: 2 | D38: 71.2 | E38: 359 | F38: Moyen | G38: 100 | H38: 100 g crues | I38: ✓ | J38: g crues | K38: Soir
A39: Pêches | B39: 1.08 | C39: 0.33 | D39: 9 | E39: 53 | F39: Bas | G39: 100 | H39: 100 g | I39: ✓ | J39: g | K39: 6h-7h
A40: Petit pois | B40: 5.8 | C40: 0.87 | D40: 4.7 | E40: 61.4 | F40: Bas | G40: 100 | H40: 100 g cuit | I40: ✓ | J40: g cuit | K40: Soir
A41: Pizza | B41: 10 | C41: 7 | D41: 27.8 | E41: 230 | F41: Elevé | G41: 100 | H41: 100 g cuite | I41: ✓ | J41: g cuite | K41: Soir
A42: Poisson | B42: 15 | C42: 7 | D42: 0.5 | E42: 77 | F42: Bas | G42: 100 | H42: 100 g cuit | I42: ✓ | J42: g cuit | K42: Soir
A43: Poivrons rouges | B43: 1.21 | C43: 0.3 | D43: 7 | E43: 39.9 | F43: Bas | G43: 100 | H43: 100 g cuits | I43: ✓ | J43: g cuits | K43: Soir
A44: Pomme | B44: 0.75 | C44: 0.5 | D44: 35 | E44: 130 | F44: Bas | G44: 250 | H44: 250 g = 1 pomme | I44: ✓ | J44: g = 1 pomme | K44: Matin
A45: Poulet | B45: 44.7 | C45: 11.7 | D45: 0 | E45: 295.5 | F45: rien | G45: 150 | H45: 150 g cuits | I45: ✓ | J45: g cuits | K45: Midi
A46: ragout de veau | B46: 20 | C46: 5.1 | D46: 3.1 | E46: 180 | F46: rien | G46: 100 | H46: 100 g cuit | I46: ✓ | J46: g cuit | K46: Soir
A47: Riz | B47: 7 | C47: 0.2 | D47: 79 | E47: 355 | F47: Elevé | G47: 100 | H47: 100 g crus | I47: ✓ | J47: g crus | K47: Soir
A48: Salade | B48: 1.3 | C48: 0.2 | D48: 2.3 | E48: 20 | F48: Bas | G48: 100 | H48: 100 g | I48: ✓ | J48: g | K48: Midi
A49: Sauce Creamy Deluxe | B49: 0 | C49: 10 | D49: 2 | E49: 100 | F49: Elevé | G49: 1 | H49: 1 boîte | I49: ✓ | J49: boîte | K49: Soir
A50: Sauce tomate | B50: 2 | C50: 0.2 | D50: 6.4 | E50: 41 | F50: Bas | G50: 100 | H50: 100 g | I50: ✓ | J50: g | K50: Soir
A51: Sauce Tomate Sucre | B51: ? | C51: ? | D51: ? | E51: ? | F51: Moyen | I51: ❌ | K51: Soir
A52: Spaghetti | B52: ? | C52: ? | D52: ? | E52: ? | F52: Moyen | I52: ❌ | K52: Soir
A53: Sundae | B53: 5 | C53: 6 | D53: 49 | E53: 270 | F53: Elevé | G53: 1 | H53: 1 Normal | I53: ✓ | J53: Normal | K53: Soir
A54: Sushi | B54: 4 | C54: 1 | D54: 5 | E54: 50 | F54: Moyen | G54: 1 | H54: 1 unité | I54: ✓ | J54: unité | K54: Soir
A55: Tomates | B55: 0.86 | C55: 0.26 | D55: 2.26 | E55: 18.4 | F55: Bas | G55: 100 | H55: 100 g | I55: ✓ | J55: g | K55: Soir
A56: Vinaigre | B56: ? | C56: ? | D56: ? | E56: ? | F56: Bas | I56: ❌ | K56: Midi
A57: Whey | B57: 24.2 | C57: 0.4 | D57: 1.3 | E57: 110 | F57: rien | G57: 1 | H57: 1 portion | I57: ✓ | J57: portion | K57: Matin et 6h-7h
A58: Yaourt nature | B58: 4 | C58: 1 | D58: 4.5 | E58: 51 | F58: Bas | G58: 100 | H58: 100 g | I58: ✓ | J58: g | K58: Matin

Sheet recherveV Source 2
A1: SOURCE POUR FORMULE RECHERCHEV
A2: ça se mange quand ? | B2: Protéines pour 100g | C2: Lipides pour 100g | D2: Glucides pour 100g | E2: Kcal pour 100g | F2: Type | G2: Mesures Calcul | H2: Mesures Texte | I2: Check | J2: MESURE TEXTE UNIQUEMENT | K2: ça se mange quand ? | L2: Nom aliment
A4: Soir | B4: 1.61 | C4: 13.8 | D4: 3.67 | E4: 165 | F4: Bas | G4: 100 | H4: 100 g | I4: =IF(E4="?","❌","✓") -> ✓ | J4: g | K4: Soir | L4: Avocat
A5: Soir | B5: 0.77 | C5: 0.26 | D5: 6.45 | E5: 36.4 | F5: Bas | G5: 100 | H5: 100 g crues | I5: ✓ | J5: g crues | K5: Soir | L5: Carottes
A6: Soir | B6: 2.2 | C6: 0.5 | D6: 5.3 | E6: 29 | F6: Bas | G6: 100 | H6: 100 g cuit | I6: ✓ | J6: g cuit | K6: Soir | L6: Champignon
A7: Soir | B7: 0.64 | C7: 0.11 | D7: 2.04 | E7: 14 | F7: Bas | G7: 100 | H7: 100 g cru | I7: ✓ | J7: g cru | K7: Soir | L7: Concombre
B8: ? | C8: ? | D8: ? | E8: ? | F8: Bas | I8: ❌ | L8: Haricots blancs
B9: ? | C9: ? | D9: ? | E9: ? | F9: Bas | I9: ❌ | L9: Haricot rouges
A10: Soir | B10: 2 | C10: 0.17 | D10: 3 | E10: 29.4 | F10: Bas | G10: 100 | H10: 100 g cuits | I10: ✓ | J10: g cuits | K10: Soir | L10: Haricots verts
A11: Soir | B11: 9 | C11: 0.4 | D11: 20 | E11: 130 | F11: Bas | G11: 100 | H11: 100 g cuits | I11: ✓ | J11: g cuits | K11: Soir | L11: Lentilles
A12: 6h-7h | B12: 1.08 | C12: 0.33 | D12: 9 | E12: 53 | F12: Bas | G12: 100 | H12: 100 g | I12: ✓ | J12: g | K12: 6h-7h | L12: Pêches
A13: Soir | B13: 5.8 | C13: 0.87 | D13: 4.7 | E13: 61.4 | F13: Bas | G13: 100 | H13: 100 g cuit | I13: ✓ | J13: g cuit | K13: Soir | L13: Petit pois
A14: Soir | B14: 1.21 | C14: 0.3 | D14: 7 | E14: 39.9 | F14: Bas | G14: 100 | H14: 100 g cuits | I14: ✓ | J14: g cuits | K14: Soir | L14: Poivrons rouges
A15: Matin | B15: 0.75 | C15: 0.5 | D15: 35 | E15: 130 | F15: Bas | G15: 250 | H15: 250 g = 1 pomme | I15: ✓ | J15: g = 1 pomme | K15: Matin | L15: Pomme
A16: Midi | B16: 1.3 | C16: 0.2 | D16: 2.3 | E16: 20 | F16: Bas | G16: 100 | H16: 100 g | I16: ✓ | J16: g | K16: Midi | L16: Salade
A17: Soir | B17: 2 | C17: 0.2 | D17: 6.4 | E17: 41 | F17: Bas | G17: 100 | H17: 100 g | I17: ✓ | J17: g | K17: Soir | L17: Sauce tomate
A18: Soir | B18: 0.86 | C18: 0.26 | D18: 2.26 | E18: 18.4 | F18: Bas | G18: 100 | H18: 100 g | I18: ✓ | J18: g | K18: Soir | L18: Tomates
A19: Midi | B19: ? | C19: ? | D19: ? | E19: ? | F19: Bas | I19: ❌ | K19: Midi | L19: Vinaigre
A20: Matin | B20: 4 | C20: 1 | D20: 4.5 | E20: 51 | F20: Bas | G20: 100 | H20: 100 g | I20: ✓ | J20: g | K20: Matin | L20: Yaourt nature
A21: Matin et 6h-7h | B21: 24.2 | C21: 0.4 | D21: 1.3 | E21: 110 | F21: rien | G21: 1 | H21: 1 portion | I21: ✓ | J21: portion | K21: Matin et 6h-7h | L21: Whey
A22: 6h-7h | B22: 0 | C22: 0 | D22: 0 | E22: 67 | F22: rien | G22: 1 | H22: 1 portion | I22: ✓ | J22: portion | K22: 6h-7h | L22: BCAA
A23: 6h-7h | B23: 0.5 | C23: 0.2 | D23: 13 | E23: 50 | F23: Moyen | G23: 100 | H23: 100 g | I23: ✓ | J23: g | K23: 6h-7h | L23: Ananas | M23: données pour la liste
A24: Matin | B24: 13 | C24: 7 | D24: 61 | E24: 375 | F24: Moyen | G24: 100 | H24: 100 g | I24: ✓ | J24: g | K24: Matin | L24: Avoine | M24: Pizza
A25: 6h-7h | B25: 2.6 | C25: 0.8 | D25: 54 | E25: 210 | F25: Moyen | G25: 200 | H25: 200 g = 1 banane | I25: ✓ | J25: g = 1 banane | K25: 6h-7h | L25: Banane | M25: Lentilles
A26: Soir | B26: 0.86 | C26: 0 | D26: 6.73 | E26: 51.41 | F26: Moyen | G26: 1 | H26: 1 unité | I26: ✓ | J26: unité | K26: Soir | L26: Biscuits | M26: Pâtes
B27: ? | C27: ? | D27: ? | E27: ? | F27: Moyen | I27: ❌ | L27: Boulgour | M27: Patate eau
B28: ? | C28: ? | D28: ? | E28: ? | F28: Moyen | I28: ❌ | L28: Couscous | M28: Riz
A29: 6h-7h | B29: 0.5 | C29: 0.3 | D29: 17.6 | E29: 67 | F29: Moyen | G29: 100 | H29: 100 g | I29: ✓ | J29: g | K29: 6h-7h | L29: Mangue | M29: Avoine
B30: ? | C30: ? | D30: ? | E30: ? | F30: Moyen | I30: ❌ | L30: Pain | M30: Poulet
A31: Soir | B31: 12.5 | C31: 2 | D31: 71.2 | E31: 359 | F31: Moyen | G31: 100 | H31: 100 g crues | I31: ✓ | J31: g crues | K31: Soir | L31: Pâtes | M31: Dinde
A32: Soir | B32: ? | C32: ? | D32: ? | E32: ? | F32: Moyen | I32: ❌ | K32: Soir | L32: Sauce Tomate Sucre | M32: Poisson
A33: Soir | B33: ? | C33: ? | D33: ? | E33: ? | F33: Moyen | I33: ❌ | K33: Soir | L33: Spaghetti | M33: Filet de boeuf
A34: Soir | B34: 4 | C34: 1 | D34: 5 | E34: 50 | F34: Moyen | G34: 1 | H34: 1 unité | I34: ✓ | J34: unité | K34: Soir | L34: Sushi | M34: Filet de Veau
A35: Soir | B35: ? | C35: ? | D35: ? | E35: ? | F35: Elevé | I35: ❌ | K35: Soir | L35: Baguette | M35: ragout de veau
A36: Matin | B36: 5.3 | C36: 13.7 | D36: 29.8 | E36: 300 | F36: Elevé | G36: 1 | H36: 1 croissant | I36: ✓ | J36: croissant | K36: Matin | L36: Croissant | M36: Filet de porc
A37: Soir | B37: ? | C37: ? | D37: ? | E37: ? | F37: Elevé | I37: ❌ | K37: Soir | L37: Gnocchi | M37: Carottes
A38: Soir | B38: ? | C38: ? | D38: ? | E38: ? | F38: Elevé | I38: ❌ | K38: Soir | L38: Lasagnes
A39: Matin | B39: 6.9 | C39: 21.1 | D39: 47.4 | E39: 414 | F39: Elevé | G39: 1 | H39: 1 pain | I39: ✓ | J39: pain | K39: Matin | L39: Pain au chocolat
A40: Soir | B40: 10 | C40: 7 | D40: 27.8 | E40: 230 | F40: Elevé | G40: 100 | H40: 100 g cuite | I40: ✓ | J40: g cuite | K40: Soir | L40: Pizza
A41: Soir | B41: 2 | C41: 0.34 | D41: 16 | E41: 90 | F41: Elevé | G41: 100 | H41: 100 g cuites à l'eau | I41: ✓ | J41: g cuites à l'eau | K41: Soir | L41: Patate eau
A42: Soir | B42: 7 | C42: 0.2 | D42: 79 | E42: 355 | F42: Elevé | G42: 100 | H42: 100 g crus | I42: ✓ | J42: g crus | K42: Soir | L42: Riz
A43: Midi | B43: 44.7 | C43: 11.7 | D43: 0 | E43: 295.5 | F43: rien | G43: 150 | H43: 150 g cuits | I43: ✓ | J43: g cuits | K43: Midi | L43: Poulet
A44: Soir | B44: 2.4 | C44: 0.4 | D44: 7.2 | E44: 35 | F44: Bas | G44: 100 | H44: 100 g cuits | I44: ✓ | J44: g cuits | K44: Soir | L44: Brocoli
A45: Soir | B45: 15 | C45: 7 | D45: 0.5 | E45: 77 | F45: Bas | G45: 100 | H45: 100 g cuit | I45: ✓ | J45: g cuit | K45: Soir | L45: Poisson
A46: Midi | B46: 28.5 | C46: 7 | D46: 0 | E46: 170 | F46: rien | G46: 100 | H46: 100 g cuit | I46: ✓ | J46: g cuit | K46: Midi | L46: Dinde
A47: Soir | B47: 26.5 | C47: 8 | D47: 0 | E47: 267 | F47: rien | G47: 100 | H47: 100 g cuit | I47: ✓ | J47: g cuit | K47: Soir | L47: Filet de boeuf
A48: Soir | B48: 28.4 | C48: 5.2 | D48: 0 | E48: 138 | F48: rien | G48: 100 | H48: 100 g cuit | I48: ✓ | J48: g cuit | K48: Soir | L48: Filet de Veau
A49: Soir | B49: 20 | C49: 5.1 | D49: 3.1 | E49: 180 | F49: rien | G49: 100 | H49: 100 g cuit | I49: ✓ | J49: g cuit | K49: Soir | L49: ragout de veau
A50: Soir | B50: 29.9 | C50: 8.1 | D50: 0 | E50: 201 | F50: rien | G50: 100 | H50: 100 g cuit | I50: ✓ | J50: g cuit | K50: Soir | L50: Filet de porc
B51: ? | C51: ? | D51: ? | E51: ? | F51: Bas | I51: ❌ | L51: Cacahuètes
B52: ? | C52: ? | D52: ? | E52: ? | F52: rien | I52: ❌ | L52: Noix
A53: Soir | B53: 26 | C53: 25 | D53: 42 | E53: 500 | F53: Elevé | G53: 1 | H53: 1 Big Mac | I53: ✓ | J53: Big mac | K53: Soir | L53: Big Mac
A54: Soir | B54: 46 | C54: 49 | D54: 50 | E54: 833 | F54: Elevé | G54: 1 | H54: 1 Big Tasty | I54: ✓ | J54: Big Tasty | K54: Soir | L54: Big Tasty
A55: Soir | B55: 5 | C55: 22 | D55: 55 | E55: 450 | F55: Elevé | G55: 1 | H55: 1 Frites Medium | I55: ✓ | J55: Frites Medium | K55: Soir | L55: Frites Mcdo
A56: Soir | B56: 0 | C56: 10 | D56: 2 | E56: 100 | F56: Elevé | G56: 1 | H56: 1 boîte | I56: ✓ | J56: boîte | K56: Soir | L56: Sauce Creamy Deluxe
A57: Soir | B57: 25 | C57: 21 | D57: 28 | E57: 400 | F57: Elevé | G57: 9 | H57: x9 Chicken | I57: ✓ | J57: Chicken | K57: Soir | L57: 9 Chicken
A58: Soir | B58: 5 | C58: 6 | D58: 49 | E58: 270 | F58: Elevé | G58: 1 | H58: 1 Normal | I58: ✓ | J58: Normal | K58: Soir | L58: Sundae
A59: Soir | B59: 7 | C59: 12 | D59: 58 | E59: 370 | F59: Elevé | G59: 1 | H59: 1 Boîte normal | I59: ✓ | J59: Boîte normal | K59: Soir | L59: McFlurry M&M's
A60: Soir | B60: 42 | C60: 35 | D60: 43 | E60: 660 | F60: Elevé | G60: 1 | H60: 1 Double Big Mac | I60: ✓ | J60: Double Big Mac | K60: Soir | L60: Double Big Mac
